fUSD/lending_fUSD_20240423
["ID","MTS","AMOUNT","RATE_DAILY","PERIOD"]
[323351594,1713910268828,-500.0,0.00012328,2]
[323351595,1713910268837,-500.0,0.00012328,2]
[323351596,1713910268847,-500.0,0.00012328,2]
[323351597,1713910268856,-500.0,0.00012328,2]
[323351598,1713910268865,-500.0,0.00012328,2]
[323351599,1713910268874,-500.0,0.00012328,2]
[323351600,1713910268883,-500.0,0.00012328,2]
[323351601,1713910268892,-500.0,0.00012328,2]
[323351602,1713910268901,-500.0,0.00012328,2]
[323351603,1713910268910,-500.0,0.00012328,2]
[323351604,1713910268919,-500.0,0.00012328,2]
[323351605,1713910268928,-500.0,0.00012328,2]
[323351606,1713910268938,-500.0,0.00012328,2]
[323351607,1713910268947,-524.98261991,0.00012328,2]
[323351608,1713910268957,-500.0,0.00012328,2]
[323351609,1713910268966,-500.0,0.00012328,2]
[323351610,1713910268975,-500.0,0.00012328,2]
[323351611,1713910268984,-511.9,0.00012328,2]
[323351612,1713910268994,-500.0,0.00012328,2]
[323351613,1713910269003,-505.06561172,0.00012328,2]
[323351614,1713910269012,-558.48,0.00012328,2]
[323351615,1713910269021,-500.0,0.00012328,2]
[323351616,1713910269030,-510.89,0.00012328,2]
[323351617,1713910269039,-523.5,0.00012328,2]
[323351618,1713910269048,-500.0,0.00012328,2]
[323351619,1713910269059,-500.0,0.00012328,2]
[323351620,1713910269069,-591.22,0.00012328,2]
[323351621,1713910269079,-500.0,0.00012328,2]
[323351622,1713910269088,-500.0,0.00012328,2]
[323351623,1713910269097,-500.0,0.00012328,2]
[323351624,1713910269106,-500.0,0.00012328,2]
[323351625,1713910269115,-500.0,0.00012328,2]
[323351626,1713910269123,-500.0,0.00012328,2]
[323351627,1713910269132,-500.0,0.00012328,2]
[323351628,1713910269141,-500.0,0.00012328,2]
[323351629,1713910269151,-500.0,0.00012328,2]
[323351630,1713910269159,-500.0,0.00012328,2]
[323351631,1713910269169,-500.0,0.00012328,2]
[323351632,1713910269178,-644.82,0.00012328,2]
[323351633,1713910269187,-500.0,0.00012328,2]
[323351634,1713910269196,-500.0,0.00012328,2]
[323351635,1713910269205,-500.0,0.00012328,2]
[323351636,1713910269215,-500.0,0.00012328,2]
[323351637,1713910269224,-500.0,0.00012328,2]
[323351638,1713910269237,-500.0,0.00012328,2]
[323351639,1713910269246,-532.39,0.00012328,2]
[323351640,1713910269255,-500.0,0.00012328,2]
[323351641,1713910269265,-531.35,0.00012328,2]
[323351642,1713910269274,-500.0,0.00012328,2]
[323351643,1713910269283,-500.0,0.00012328,2]
[323351644,1713910269293,-767.72,0.00012328,2]
[323351645,1713910269303,-500.0,0.00012328,2]
[323351646,1713910269315,-500.0,0.00012328,2]
[323351647,1713910269325,-500.0,0.00012328,2]
[323351648,1713910269335,-500.0,0.00012328,2]
[323351649,1713910269344,-500.0,0.00012328,2]
[323351650,1713910269354,-179.57097684,0.00012328,2]
[323351651,1713910269363,-500.0,0.00012328,2]
[323351652,1713910269372,-500.0,0.00012328,2]
[323351653,1713910269381,-500.0,0.00012328,2]
[323351654,1713910269391,-500.0,0.00012328,2]
[323351655,1713910269400,-690.47,0.00012328,2]
[323351656,1713910269409,-500.0,0.00012328,2]
[323351657,1713910269419,-500.0,0.00012328,2]
[323351658,1713910269430,-500.0,0.00012328,2]
[323351659,1713910269440,-500.0,0.00012328,2]
[323351660,1713910269449,-500.0,0.00012328,2]
[323351661,1713910269459,-684.18,0.00012328,2]
[323351662,1713910269468,-583.34,0.00012328,2]
[323351663,1713910269477,-500.0,0.00012328,2]
[323351664,1713910269486,-659.94,0.00012328,2]
[323351665,1713910269495,-667.91,0.00012328,2]
[323351666,1713910269504,-500.0,0.00012328,2]
[323351667,1713910269513,-500.0,0.00012328,2]
[323351668,1713910269522,-333.44067112,0.00012328,2]
[323351669,1713910269531,-500.0,0.00012328,2]
[323351670,1713910269540,-500.0,0.00012328,2]
[323351671,1713910269549,-500.0,0.00012328,2]
[323351672,1713910269558,-500.0,0.00012328,2]
[323351673,1713910269569,-500.0,0.00012328,2]
[323351674,1713910269578,-500.0,0.00012328,2]
[323351675,1713910269587,-500.0,0.00012328,2]
[323351676,1713910269598,-500.0,0.00012328,2]
[323351677,1713910269608,-500.0,0.00012328,2]
[323351678,1713910269619,-500.0,0.00012328,2]
[323351679,1713910269628,-627.06,0.00012328,2]
[323351680,1713910269637,-500.0,0.00012328,2]
[323351681,1713910269646,-889.83,0.00012328,2]
[323351682,1713910269656,-500.0,0.00012328,2]
[323351683,1713910269665,-500.0,0.00012328,2]
[323351684,1713910269674,-500.0,0.00012328,2]
[323351685,1713910269683,-500.0,0.00012328,2]
[323351686,1713910269692,-631.99,0.00012328,2]
[323351687,1713910269701,-500.0,0.00012328,2]
[323351688,1713910269710,-583.48,0.00012328,2]
[323351689,1713910269719,-692.64,0.00012328,2]
[323351690,1713910269728,-567.03,0.00012328,2]
[323351691,1713910269738,-574.25,0.00012328,2]
[323351692,1713910269747,-574.8,0.00012328,2]
[323351693,1713910269756,-550.79,0.00012328,2]
[323351694,1713910269766,-585.41,0.00012328,2]
[323351695,1713910269774,-500.0,0.00012328,2]
[323351696,1713910269783,-500.0,0.00012328,2]
[323351697,1713910269793,-500.0,0.00012328,2]
[323351698,1713910269802,-500.0,0.00012328,2]
[323351699,1713910269811,-540.75,0.00012328,2]
[323351700,1713910269954,-500.0,0.00012328,2]
[323351701,1713910269964,-500.0,0.00012328,2]
[323351702,1713910269974,-500.0,0.00012328,2]
[323351703,1713910269983,-521.85,0.00012328,2]
[323351704,1713910269992,-500.0,0.00012328,2]
[323351705,1713910270001,-500.0,0.00012328,2]
[323351706,1713910270011,-500.0,0.00012328,2]
[323351707,1713910270020,-794.36,0.00012328,2]
[323351708,1713910270029,-150.0,0.00012328,2]
[323351709,1713910270038,-500.0,0.00012328,2]
[323351710,1713910270047,-500.0,0.00012328,2]
[323351711,1713910270057,-500.0,0.00012328,2]
[323351712,1713910270068,-500.0,0.00012328,2]
[323351713,1713910270077,-500.0,0.00012328,2]
[323351714,1713910270086,-619.91,0.00012328,2]
[323351715,1713910270096,-638.82,0.00012328,2]
[323351716,1713910270105,-500.0,0.00012328,2]
[323351717,1713910270114,-500.0,0.00012328,2]
[323351718,1713910270123,-500.0,0.00012328,2]
[323351719,1713910270133,-500.0,0.00012328,2]
[323351720,1713910270141,-500.0,0.00012328,2]
[323351721,1713910270151,-500.0,0.00012328,2]
[323351722,1713910270162,-500.0,0.00012328,2]
[323351723,1713910270173,-500.0,0.00012328,2]
[323351724,1713910270182,-500.0,0.00012328,2]
[323351725,1713910270191,-500.0,0.00012328,2]
[323351726,1713910270201,-763.35,0.00012328,2]
[323351727,1713910270211,-500.0,0.00012328,2]
[323351728,1713910270221,-558.68,0.00012328,2]
[323351729,1713910270230,-500.0,0.00012328,2]
[323351730,1713910270244,-500.0,0.00012328,2]
[323351731,1713910270253,-500.0,0.00012328,2]
[323351732,1713910270263,-500.0,0.00012328,2]
[323351733,1713910270274,-745.12,0.00012328,2]
[323351734,1713910270283,-500.0,0.00012328,2]
[323351735,1713910270292,-500.0,0.00012328,2]
[323351736,1713910270301,-500.0,0.00012328,2]
[323351737,1713910270311,-780.19,0.00012328,2]
[323351738,1713910270321,-500.0,0.00012328,2]
[323351739,1713910270331,-500.0,0.00012328,2]
[323351740,1713910270340,-500.0,0.00012328,2]
[323351741,1713910270349,-500.0,0.00012328,2]
[323351742,1713910270358,-500.0,0.00012328,2]
[323351743,1713910270367,-500.0,0.00012328,2]
[323351744,1713910270377,-500.0,0.00012328,2]
[323351745,1713910270387,-500.0,0.00012328,2]
[323351746,1713910270395,-500.0,0.00012328,2]
[323351747,1713910270405,-500.0,0.00012328,2]
[323351748,1713910270415,-500.0,0.00012328,2]
[323351749,1713910270424,-500.0,0.00012328,2]
[323351750,1713910270433,-342.02340395,0.00012328,2]
[323351751,1713910270847,-157.97659605,0.00012328,2]
[323351752,1713910270856,-523.09,0.00012328,2]
[323351753,1713910270866,-500.0,0.00012328,2]
[323351754,1713910270875,-740.39,0.00012328,2]
[323351755,1713910270885,-500.0,0.00012328,2]
[323351756,1713910270894,-500.0,0.00012328,2]
[323351757,1713910270904,-609.81,0.00012328,2]
[323351758,1713910270914,-500.0,0.00012328,2]
[323351759,1713910270923,-581.41,0.00012328,2]
[323351760,1713910270932,-950.3,0.00012328,2]
[323351761,1713910270942,-500.0,0.00012328,2]
[323351762,1713910270952,-500.0,0.00012328,2]
[323351763,1713910270961,-500.0,0.00012328,2]
[323351764,1713910270974,-500.0,0.00012328,2]
[323351765,1713910270983,-546.67,0.00012328,2]
[323351766,1713910270996,-500.0,0.00012328,2]
[323351767,1713910271007,-500.0,0.00012328,2]
[323351768,1713910271016,-500.0,0.00012328,2]
[323351769,1713910271026,-619.04,0.00012328,2]
[323351770,1713910271036,-500.0,0.00012328,2]
[323351771,1713910271046,-605.71,0.00012328,2]
[323351772,1713910271055,-678.87,0.00012328,2]
[323351773,1713910271065,-694.72,0.00012328,2]
[323351774,1713910271074,-500.0,0.00012328,2]
[323351775,1713910271083,-500.0,0.00012328,2]
[323351776,1713910271092,-531.47,0.00012328,2]
[323351777,1713910271101,-500.0,0.00012328,2]
[323351778,1713910271110,-310.58266254,0.00012328,2]
[323351779,1713910271119,-500.0,0.00012328,2]
[323351780,1713910271128,-500.0,0.00012328,2]
[323351781,1713910271137,-500.0,0.00012328,2]
[323351782,1713910271146,-500.0,0.00012328,2]
[323351783,1713910271155,-821.47,0.00012328,2]
[323351784,1713910271164,-500.0,0.00012328,2]
[323351785,1713910271173,-500.0,0.00012328,2]
[323351786,1713910271183,-500.0,0.00012328,2]
[323351787,1713910271192,-500.0,0.00012328,2]
[323351788,1713910271201,-500.0,0.00012328,2]
[323351789,1713910271210,-500.0,0.00012328,2]
[323351790,1713910271219,-500.0,0.00012328,2]
[323351791,1713910271228,-500.0,0.00012328,2]
[323351792,1713910271242,-500.0,0.00012328,2]
[323351793,1713910271252,-549.59,0.00012328,2]
[323351794,1713910271262,-500.0,0.00012328,2]
[323351795,1713910271271,-607.68,0.00012328,2]
[323351796,1713910271281,-500.0,0.00012328,2]
[323351797,1713910271291,-756.79,0.00012328,2]
[323351798,1713910271301,-500.0,0.00012328,2]
[323351799,1713910271312,-500.0,0.00012328,2]
[323351800,1713910271323,-500.0,0.00012328,2]
[323351801,1713910271333,-574.66,0.00012328,2]
[323351802,1713910271342,-500.0,0.00012328,2]
[323351803,1713910271352,-170.72,0.00012328,2]
[323351804,1713910271363,-500.0,0.00012328,2]
[323351805,1713910271373,-500.0,0.00012328,2]
[323351806,1713910271382,-500.0,0.00012328,2]
[323351807,1713910271391,-615.68,0.00012328,2]
[323351808,1713910271400,-500.0,0.00012328,2]
[323351809,1713910271409,-583.56,0.00012328,2]
[323351810,1713910271418,-500.0,0.00012328,2]
[323351811,1713910271427,-574.68,0.00012328,2]
[323351812,1713910271437,-657.81,0.00012328,2]
[323351813,1713910271446,-500.0,0.00012328,2]
[323351814,1713910271455,-552.28828527,0.00012328,2]
[323351815,1713910271464,-167.57699651,0.00012328,2]
[323351816,1713910271473,-500.0,0.00012328,2]
[323351817,1713910271633,-500.0,0.00012328,2]
[323351818,1713910271642,-500.0,0.00012328,2]
[323351819,1713910271652,-471.06537299,0.00012328,2]
[323351820,1713910271662,-574.29,0.00012328,2]
[323351821,1713910271671,-214.66991972,0.00012328,2]
[323351822,1713910271681,-500.0,0.00012328,2]
[323351823,1713910271693,-502.45,0.00012328,2]
[323351824,1713910271703,-541.27,0.00012328,2]
[323351825,1713910271713,-500.0,0.00012328,2]
[323351826,1713910271722,-721.33,0.00012328,2]
[323351827,1713910271731,-504.89,0.00012328,2]
[323351828,1713910271744,-500.0,0.00012328,2]
[323351829,1713910271753,-500.0,0.00012328,2]
[323351830,1713910271762,-500.0,0.00012328,2]
[323351831,1713910271772,-659.57,0.00012328,2]
[323351832,1713910271783,-500.0,0.00012328,2]
[323351833,1713910271793,-821.36,0.00012328,2]
[323351834,1713910271802,-500.0,0.00012328,2]
[323351835,1713910271812,-500.0,0.00012328,2]
[323351836,1713910271822,-500.0,0.00012328,2]
[323351837,1713910271832,-500.0,0.00012328,2]
[323351838,1713910271841,-500.0,0.00012328,2]
[323351839,1713910271851,-500.0,0.00012328,2]
[323351840,1713910271860,-500.0,0.00012328,2]
[323351841,1713910271870,-785.7,0.00012328,2]
[323351842,1713910271880,-500.0,0.00012328,2]
[323351843,1713910271891,-500.0,0.00012328,2]
[323351844,1713910271904,-500.0,0.00012328,2]
[323351845,1713910271914,-500.0,0.00012328,2]
[323351846,1713910271924,-519.87,0.00012328,2]
[323351847,1713910271934,-500.0,0.00012328,2]
[323351848,1713910271944,-500.0,0.00012328,2]
[323351849,1713910271954,-500.0,0.00012328,2]
[323351850,1713910271964,-500.0,0.00012328,2]
[323351851,1713910271973,-500.0,0.00012328,2]
[323351852,1713910271982,-500.0,0.00012328,2]
[323351853,1713910271992,-673.37,0.00012328,2]
[323351854,1713910272001,-500.0,0.00012328,2]
[323351855,1713910272011,-214.62884268,0.00012328,2]
[323351856,1713910272020,-503.81,0.00012328,2]
[323351857,1713910272033,-626.84,0.00012328,2]
[323351858,1713910272043,-500.0,0.00012328,2]
[323351859,1713910272052,-500.0,0.00012328,2]
[323351860,1713910272062,-500.0,0.00012328,2]
[323351861,1713910272071,-500.0,0.00012328,2]
[323351862,1713910272080,-500.0,0.00012328,2]
[323351863,1713910272090,-500.0,0.00012328,2]
[323351864,1713910272099,-522.16,0.00012328,2]
[323351865,1713910272109,-551.37,0.00012328,2]
[323351866,1713910272118,-500.0,0.00012328,2]
[323351867,1713910272128,-653.5,0.00012328,2]
[323351868,1713910272137,-500.0,0.00012328,2]
[323351869,1713910272146,-643.07,0.00012328,2]
[323351870,1713910272158,-500.0,0.00012328,2]
[323351871,1713910272167,-500.0,0.00012328,2]
[323351872,1713910272177,-500.0,0.00012328,2]
[323351873,1713910272186,-500.0,0.00012328,2]
[323351874,1713910272196,-500.0,0.00012328,2]
[323351875,1713910272205,-531.94,0.00012328,2]
[323351876,1713910272215,-602.33,0.00012328,2]
[323351877,1713910272226,-500.0,0.00012328,2]
[323351878,1713910272238,-500.0,0.00012328,2]
[323351879,1713910272247,-500.0,0.00012328,2]
[323351880,1713910272256,-500.0,0.00012328,2]
[323351881,1713910272265,-500.0,0.00012328,2]
[323351882,1713910272274,-736.77,0.00012328,2]
[323351883,1713910272284,-500.0,0.00012328,2]
[323351884,1713910272294,-777.77,0.00012328,2]
[323351885,1713910272303,-500.0,0.00012328,2]
[323351886,1713910272313,-636.99,0.00012328,2]
[323351887,1713910272323,-592.3,0.00012328,2]
[323351888,1713910272333,-500.0,0.00012328,2]
[323351889,1713910272343,-500.0,0.00012328,2]
[323351890,1713910272353,-923.72,0.00012328,2]
[323351891,1713910272362,-500.0,0.00012328,2]
[323351892,1713910272372,-500.0,0.00012328,2]
[323351893,1713910272382,-715.88,0.00012328,2]
[323351894,1713910272392,-588.73989607,0.00012328,2]
[323351895,1713910272401,-500.0,0.00012328,2]
[323351896,1713910272411,-279.29165826,0.00012328,2]
[323351897,1713910272421,-500.0,0.00012328,2]
[323351898,1713910272430,-500.0,0.00012328,2]
[323351899,1713910272440,-855.46,0.00012328,2]
[323351900,1713910272449,-650.4,0.00012328,2]
[323351901,1713910272459,-672.49,0.00012328,2]
[323351902,1713910272470,-500.0,0.00012328,2]
[323351903,1713910272479,-511.57,0.00012328,2]
[323351904,1713910272489,-546.33,0.00012328,2]
[323351905,1713910272498,-845.54,0.00012328,2]
[323351906,1713910272508,-1190.79,0.00012328,2]
[323351907,1713910272517,-587.06,0.00012328,2]
[323351908,1713910272527,-500.0,0.00012328,2]
[323351909,1713910272536,-789.17,0.00012328,2]
[323351910,1713910272546,-500.0,0.00012328,2]
[323351911,1713910272556,-729.27,0.00012328,2]
[323351912,1713910272566,-500.0,0.00012328,2]
[323351913,1713910272575,-660.38,0.00012328,2]
[323351914,1713910272585,-500.0,0.00012328,2]
[323351915,1713910272595,-586.06,0.00012328,2]
[323351916,1713910272604,-761.34,0.00012328,2]
[323351917,1713910272614,-814.37,0.00012328,2]
[323351918,1713910272623,-500.0,0.00012328,2]
[323351919,1713910272633,-655.05,0.00012328,2]
[323351920,1713910272642,-500.0,0.00012328,2]
[323351921,1713910272652,-500.0,0.00012328,2]
[323351922,1713910272662,-500.0,0.00012328,2]
[323351923,1713910272671,-500.0,0.00012328,2]
[323351924,1713910272681,-581.5,0.00012328,2]
[323351925,1713910272690,-500.0,0.00012328,2]
[323351926,1713910272699,-500.0,0.00012328,2]
[323351927,1713910272709,-500.0,0.00012328,2]
[323351928,1713910272719,-500.0,0.00012328,2]
[323351929,1713910272728,-786.25,0.00012328,2]
[323351930,1713910272738,-881.48,0.00012328,2]
[323351931,1713910272747,-500.0,0.00012328,2]
[323351932,1713910272758,-500.0,0.00012328,2]
[323351933,1713910272768,-500.0,0.00012328,2]
[323351934,1713910272778,-500.0,0.00012328,2]
[323351935,1713910272787,-1744.65,0.00012328,2]
[323351936,1713910272797,-500.0,0.00012328,2]
[323351937,1713910272806,-726.14,0.00012328,2]
[323351938,1713910272815,-500.0,0.00012328,2]
[323351939,1713910272825,-500.0,0.00012328,2]
[323351940,1713910272834,-500.0,0.00012328,2]
[323351941,1713910272843,-500.0,0.00012328,2]
[323351942,1713910272853,-500.0,0.00012328,2]
[323351943,1713910272862,-501.23,0.00012328,2]
[323351944,1713910272872,-590.33,0.00012328,2]
[323351945,1713910272882,-500.0,0.00012328,2]
[323351946,1713910272891,-500.0,0.00012328,2]
[323351947,1713910272901,-500.0,0.00012328,2]
[323351948,1713910272910,-500.0,0.00012328,2]
[323351949,1713910272920,-500.0,0.00012328,2]
[323351950,1713910272930,-500.0,0.00012328,2]
[323351951,1713910272940,-500.0,0.00012328,2]
[323351952,1713910272949,-500.0,0.00012328,2]
[323351953,1713910272959,-817.95,0.00012328,2]
[323351954,1713910272970,-500.0,0.00012328,2]
[323351955,1713910272979,-500.0,0.00012328,2]
[323351956,1713910272989,-932.49,0.00012328,2]
[323351957,1713910272999,-500.0,0.00012328,2]
[323351958,1713910273008,-2727.2,0.00012328,2]
[323351959,1713910273018,-500.0,0.00012328,2]
[323351960,1713910273027,-500.0,0.00012328,2]
[323351961,1713910273037,-500.0,0.00012328,2]
[323351962,1713910273047,-500.0,0.00012328,2]
[323351963,1713910273056,-566.09,0.00012328,2]
[323351964,1713910273068,-292.27298768,0.00012328,2]
[323351965,1713910273078,-770.92,0.00012328,2]
[323351966,1713910273089,-500.0,0.00012328,2]
[323351967,1713910273098,-500.0,0.00012328,2]
[323351968,1713910273108,-545.21,0.00012328,2]
[323351969,1713910273117,-587.13,0.00012328,2]
[323351970,1713910273127,-771.58,0.00012328,2]
[323351971,1713910273137,-500.0,0.00012328,2]
[323351972,1713910273148,-771.13,0.00012328,2]
[323351973,1713910273158,-500.0,0.00012328,2]
[323351974,1713910273167,-500.0,0.00012328,2]
[323351975,1713910273177,-576.29,0.00012328,2]
[323351976,1713910273188,-500.0,0.00012328,2]
[323351977,1713910273199,-567.47,0.00012328,2]
[323351978,1713910273209,-500.0,0.00012328,2]
[323351979,1713910273218,-500.0,0.00012328,2]
[323351980,1713910273228,-599.96,0.00012328,2]
[323351981,1713910273241,-500.0,0.00012328,2]
[323351982,1713910273252,-781.18,0.00012328,2]
[323351983,1713910273261,-549.99,0.00012328,2]
[323351984,1713910273271,-500.0,0.00012328,2]
[323351985,1713910273281,-500.0,0.00012328,2]
[323351986,1713910273291,-500.0,0.00012328,2]
[323351987,1713910273302,-839.3,0.00012328,2]
[323351988,1713910273312,-500.0,0.00012328,2]
[323351989,1713910273329,-1000.0,0.000124,2]
[323351990,1713910273339,-384.0,0.00012418,2]
[323351991,1713910273348,-353.15266709,0.00012427,2]
[323351992,1713910273357,-1000.0,0.000125,2]
[323351993,1713910273366,-169.54,0.00012571,2]
[323351994,1713910273375,-515.0,0.00012575,2]
[323351995,1713910273385,-1511.0,0.00012575,2]
[323351996,1713910273394,-1240.0,0.000126,2]
[323351997,1713910273403,-500.0,0.00012602,2]
[323351998,1713910273413,-500.0,0.00012602,2]
[323351999,1713910273422,-500.0,0.00012602,2]
[323352000,1713910273431,-500.0,0.00012602,2]
[323352001,1713910273440,-500.0,0.00012602,2]
[323352002,1713910273449,-500.0,0.00012602,2]
[323352003,1713910273458,-500.0,0.00012602,2]
[323352004,1713910273467,-582.34,0.00012602,2]
[323352005,1713910273476,-500.0,0.00012602,2]
[323352006,1713910273486,-500.0,0.00012602,2]
[323352007,1713910273495,-500.0,0.00012602,2]
[323352008,1713910273504,-500.0,0.00012602,2]
[323352009,1713910273637,-581.41,0.00012602,2]
[323352010,1713910273658,-500.0,0.00012602,2]
[323352011,1713910273667,-500.0,0.00012602,2]
[323352012,1713910273677,-500.0,0.00012602,2]
[323352013,1713910273687,-500.0,0.00012602,2]
[323352014,1713910273697,-500.0,0.00012602,2]
[323352015,1713910273706,-500.0,0.00012602,2]
[323352016,1713910273715,-500.0,0.00012602,2]
[323352017,1713910273725,-500.0,0.00012602,2]
[323352018,1713910273734,-500.0,0.00012602,2]
[323352019,1713910273743,-500.0,0.00012602,2]
[323352020,1713910273753,-583.14,0.00012602,2]
[323352021,1713910273762,-500.0,0.00012602,2]
[323352022,1713910273772,-500.0,0.00012602,2]
[323352023,1713910273781,-602.38,0.00012602,2]
[323352024,1713910273791,-500.0,0.00012602,2]
[323352025,1713910273801,-500.0,0.00012602,2]
[323352026,1713910273811,-500.0,0.00012602,2]
[323352027,1713910273822,-500.0,0.00012602,2]
[323352028,1713910273830,-500.0,0.00012602,2]
[323352029,1713910273839,-500.0,0.00012602,2]
[323352030,1713910273848,-575.27,0.00012602,2]
[323352031,1713910273858,-500.0,0.00012602,2]
[323352032,1713910273867,-500.0,0.00012602,2]
[323352033,1713910273877,-500.0,0.00012602,2]
[323352034,1713910273887,-500.0,0.00012602,2]
[323352035,1713910273897,-500.0,0.00012602,2]
[323352036,1713910273907,-500.0,0.00012602,2]
[323352037,1713910273916,-648.8,0.00012602,2]
[323352038,1713910273926,-500.0,0.00012602,2]
[323352039,1713910273937,-500.0,0.00012602,2]
[323352040,1713910273947,-510.0,0.00012602,2]
[323352041,1713910273957,-500.0,0.00012602,2]
[323352042,1713910273968,-619.14,0.00012602,2]
[323352043,1713910273978,-339.72,0.00012602,2]
[323352044,1713910273988,-500.0,0.00012602,2]
[323352045,1713910273998,-562.53,0.00012602,2]
[323352046,1713910274008,-500.0,0.00012602,2]
[323352047,1713910274018,-500.0,0.00012602,2]
[323352048,1713910274028,-500.0,0.00012602,2]
[323352049,1713910274038,-500.0,0.00012602,2]
[323352050,1713910274048,-500.0,0.00012602,2]
[323352051,1713910274057,-500.0,0.00012602,2]
[323352052,1713910274068,-500.0,0.00012602,2]
[323352053,1713910274077,-565.52,0.00012602,2]
[323352054,1713910274087,-500.0,0.00012602,2]
[323352055,1713910274097,-500.0,0.00012602,2]
[323352056,1713910274106,-649.79,0.00012602,2]
[323352057,1713910274116,-231.68,0.00012602,2]
[323352058,1713910274126,-500.0,0.00012602,2]
[323352059,1713910274136,-500.0,0.00012602,2]
[323352060,1713910274145,-500.0,0.00012602,2]
[323352061,1713910274154,-500.0,0.00012602,2]
[323352062,1713910274164,-500.0,0.00012602,2]
[323352063,1713910274174,-500.0,0.00012602,2]
[323352064,1713910274184,-523.09,0.00012602,2]
[323352065,1713910274193,-500.0,0.00012602,2]
[323352066,1713910274203,-500.0,0.00012602,2]
[323352067,1713910274212,-500.0,0.00012602,2]
[323352068,1713910274222,-500.0,0.00012602,2]
[323352069,1713910274231,-675.18,0.00012602,2]
[323352070,1713910274243,-556.0,0.00012602,2]
[323352071,1713910274252,-687.95,0.00012602,2]
[323352072,1713910274262,-500.0,0.00012602,2]
[323352073,1713910274271,-813.84,0.00012602,2]
[323352074,1713910274282,-500.0,0.00012602,2]
[323352075,1713910274292,-731.99,0.00012602,2]
[323352076,1713910274301,-500.0,0.00012602,2]
[323352077,1713910274312,-652.32,0.00012602,2]
[323352078,1713910274325,-500.0,0.00012602,2]
[323352079,1713910274335,-508.59,0.00012602,2]
[323352080,1713910274346,-500.0,0.00012602,2]
[323352081,1713910274356,-500.0,0.00012602,2]
[323352082,1713910274366,-631.93148998,0.00012602,2]
[323352083,1713910274375,-185.65944308,0.00012602,2]
[323352084,1713910274385,-500.0,0.00012602,2]
[323352085,1713910274395,-500.0,0.00012602,2]
[323352086,1713910274404,-500.0,0.00012602,2]
[323352087,1713910274414,-699.85,0.00012602,2]
[323352088,1713910274423,-500.0,0.00012602,2]
[323352089,1713910274432,-500.0,0.00012602,2]
[323352090,1713910274442,-500.0,0.00012602,2]
[323352091,1713910274451,-500.0,0.00012602,2]
[323352092,1713910274461,-507.99,0.00012602,2]
[323352093,1713910274470,-643.09,0.00012602,2]